fUST/lending_fUST_20240916
["ID","MTS","AMOUNT","RATE_DAILY","PERIOD"]
[338294761,1726486010295,-500.0,0.0002051,30]
[338294762,1726486010372,-500.0,0.0002051,30]
[338294763,1726486010449,-500.0,0.0002051,30]
[338294764,1726486010531,-500.0,0.0002051,30]
[338294765,1726486010625,-504.70359376,0.0002051,30]
[338294766,1726486010699,-500.0,0.0002051,30]
[338294767,1726486010774,-500.0,0.0002051,30]
[338294768,1726486010854,-500.0,0.0002051,30]
[338294769,1726486010929,-500.0,0.0002051,30]
[338294770,1726486011003,-500.0,0.0002051,30]
[338294771,1726486011078,-500.0,0.0002051,30]
[338294772,1726486011159,-500.0,0.0002051,30]
[338294773,1726486011234,-500.0,0.0002051,30]
[338294774,1726486011309,-500.0,0.0002051,30]
[338294775,1726486011384,-500.0,0.0002051,30]
[338294776,1726486011460,-600.0,0.0002051,30]
[338294777,1726486011534,-500.0,0.0002051,30]
[338294778,1726486011607,-600.0,0.0002051,30]
[338294779,1726486011685,-600.0,0.0002051,30]
[338294780,1726486011764,-600.0,0.0002051,30]
[338294781,1726486011841,-600.0,0.0002051,30]
[338294782,1726486011915,-600.0,0.0002051,30]
[338294783,1726486011989,-600.0,0.0002051,30]
[338294784,1726486012063,-600.0,0.0002051,30]
[338294785,1726486012144,-600.0,0.0002051,30]
[338294786,1726486012222,-600.0,0.0002051,30]
[338294787,1726486012300,-600.0,0.0002051,30]
[338294788,1726486012371,-600.0,0.0002051,30]
[338294789,1726486012447,-600.0,0.0002051,30]
[338294790,1726486012521,-600.0,0.0002051,30]
[338294791,1726486012596,-500.0,0.0002051,30]
[338294792,1726486012671,-500.0,0.0002051,30]
[338294793,1726486012748,-500.0,0.0002051,30]
[338294794,1726486012823,-500.0,0.0002051,30]
[338294795,1726486012901,-500.0,0.0002051,30]
[338294796,1726486012975,-500.0,0.0002051,30]
[338294797,1726486013050,-500.0,0.0002051,30]
[338294798,1726486013123,-500.0,0.0002051,30]
[338294799,1726486013200,-500.0,0.0002051,30]
[338294800,1726486013277,-500.0,0.0002051,30]
[338294801,1726486013355,-500.0,0.0002051,30]
[338294802,1726486013434,-500.0,0.0002051,30]
[338294803,1726486013511,-500.0,0.0002051,30]
[338294804,1726486013587,-500.0,0.0002051,30]
[338294805,1726486013665,-500.0,0.0002051,30]
[338294806,1726486013743,-500.0,0.0002051,30]
[338294807,1726486013820,-500.0,0.0002051,30]
[338294808,1726486013897,-500.0,0.0002051,30]
[338294809,1726486013972,-500.0,0.0002051,30]
[338294810,1726486014052,-500.0,0.0002051,30]
[338294811,1726486014127,-500.0,0.0002051,30]
[338294812,1726486014206,-500.0,0.0002051,30]
[338294813,1726486014283,-500.0,0.0002051,30]
[338294814,1726486014358,-500.0,0.0002051,30]
[338294815,1726486014431,-500.0,0.0002051,30]
[338294816,1726486014503,-500.0,0.0002051,30]
[338294817,1726486014578,-500.0,0.0002051,30]
[338294818,1726486014651,-500.0,0.0002051,30]
[338294819,1726486014725,-500.0,0.0002051,30]
[338294820,1726486014800,-500.0,0.0002051,30]
[338294821,1726486014875,-500.0,0.0002051,30]
[338294822,1726486014950,-500.0,0.0002051,30]
[338294823,1726486015026,-500.0,0.0002051,30]
[338294824,1726486015098,-500.0,0.0002051,30]
[338294825,1726486015172,-500.0,0.0002051,30]
[338294826,1726486015245,-500.0,0.0002051,30]
[338294827,1726486015320,-500.0,0.0002051,30]
[338294828,1726486015398,-700.0,0.0002051,30]
[338294829,1726486015475,-700.0,0.0002051,30]
[338294830,1726486015552,-700.0,0.0002051,30]
[338294831,1726486015628,-700.0,0.0002051,30]
[338294832,1726486015708,-700.0,0.0002051,30]
[338294833,1726486015785,-700.0,0.0002051,30]
[338294834,1726486015859,-700.0,0.0002051,30]
[338294835,1726486015933,-700.0,0.0002051,30]
[338294836,1726486016009,-500.0,0.0002051,30]
[338294837,1726486016086,-700.0,0.0002051,30]
[338294838,1726486016164,-500.0,0.0002051,30]
[338294839,1726486016242,-700.0,0.0002051,30]
[338294840,1726486016321,-500.0,0.0002051,30]
[338294841,1726486016399,-700.0,0.0002051,30]
[338294842,1726486016480,-700.0,0.0002051,30]
[338294843,1726486016559,-700.0,0.0002051,30]
[338294844,1726486016636,-700.0,0.0002051,30]
[338294845,1726486016716,-700.0,0.0002051,30]
[338294846,1726486016793,-600.0,0.0002051,30]
[338294847,1726486016868,-600.0,0.0002051,30]
[338294848,1726486016944,-600.0,0.0002051,30]
[338294849,1726486017020,-600.0,0.0002051,30]
[338294850,1726486017097,-600.0,0.0002051,30]
[338294851,1726486017334,-600.0,0.0002051,30]
[338294852,1726486017407,-600.0,0.0002051,30]
[338294853,1726486017479,-600.0,0.0002051,30]
[338294854,1726486017552,-600.0,0.0002051,30]
[338294855,1726486017625,-600.0,0.0002051,30]
[338294856,1726486017699,-600.0,0.0002051,30]
[338294857,1726486017775,-600.0,0.0002051,30]
[338294858,1726486017848,-600.0,0.0002051,30]
[338294859,1726486018082,-3455.55003677,0.00022723,30]
[338294860,1726486018231,-284.21898871,0.00024,30]
[338294861,1726486018387,-500.5,0.00026,31]
[338294862,1726486018467,-493.3,0.00026,31]
[338294863,1726486018548,-489.41,0.000266,31]
[338294864,1726486018627,-489.41,0.000266,31]
[338294865,1726486018707,-489.41,0.000266,31]
[338294866,1726486018786,-489.41,0.000266,31]
[338294867,1726486018865,-489.41,0.000266,31]
[338294868,1726486018944,-489.41,0.000266,31]
[338294869,1726486019022,-489.41,0.000266,31]
[338294870,1726486019101,-489.41,0.000266,31]
[338294871,1726486019182,-489.41,0.000266,31]
[338294872,1726486019260,-489.41,0.000266,31]
[338294873,1726486019343,-489.41,0.000266,31]
[338294874,1726486019424,-489.41,0.000266,31]
[338294875,1726486019503,-1500.0,0.00027,42]
[338294876,1726486019580,-1000.0,0.00027397,30]
[338294877,1726486019653,-1000.0,0.00027397,30]
[338294878,1726486019726,-966.39541255,0.00027397,30]
[338294879,1726486019799,-1128.9433348,0.00027397,30]
[338294880,1726486019876,-500.0,0.00027945,31]
[338294881,1726486019952,-500.0,0.00027945,31]
[338294882,1726486020029,-506.41332623,0.00027945,31]
[338294883,1726486020125,-4064.20493328,0.00028,60]
[338294884,1726486020211,-236.71663258,0.00028,120]
[338294885,1726486020292,-580.0,0.00028,120]
[338294886,1726486020376,-489.41,0.000281,31]
[338294887,1726486020456,-489.41,0.000281,31]
[338294888,1726486020536,-489.41,0.000281,31]
[338294889,1726486020614,-489.41,0.000281,31]
[338294890,1726486020696,-489.41,0.000281,31]
[338294891,1726486020775,-489.41,0.000281,31]
[338294892,1726486020852,-489.41,0.000281,31]
[338294893,1726486020931,-489.41,0.000281,31]
[338294894,1726486021011,-489.41,0.000281,31]
[338294895,1726486021090,-489.41,0.000281,31]
[338294896,1726486021171,-489.41,0.000281,31]
[338294897,1726486021249,-489.41,0.000281,31]
[338294898,1726486021327,-489.41,0.000281,31]
[338294899,1726486021405,-489.41,0.000281,31]
[338294900,1726486021483,-489.41,0.000281,31]
[338294901,1726486021562,-489.41,0.000281,31]
[338294902,1726486021640,-489.41,0.000281,31]
[338294903,1726486021722,-489.41,0.000281,31]
[338294904,1726486021804,-489.41,0.000281,31]
[338294905,1726486021885,-489.41,0.000281,31]
[338294906,1726486021969,-489.41,0.000281,31]
[338294907,1726486022051,-489.41,0.000281,31]
[338294908,1726486022139,-489.41,0.000281,31]
[338294909,1726486022224,-489.41,0.000281,31]
[338294910,1726486022306,-1500.0,0.00028174,42]
[338294911,1726486022390,-172.666994,0.00028493,61]
[338294912,1726486022474,-172.666994,0.00028493,120]
[338294913,1726486022554,-984.0,0.0002866,120]
[338294914,1726486022633,-1000.0,0.00029,120]
[338294915,1726486022711,-7789.46739931,0.00029,30]
[338294916,1726486022790,-580.0,0.000291,120]
[338294917,1726486022867,-1500.0,0.00029348,42]
[338294918,1726486022952,-489.41,0.000296,31]
[338294919,1726486023037,-489.41,0.000296,31]
[338294920,1726486023127,-489.41,0.000296,31]
[338294921,1726486023217,-489.41,0.000296,31]
[338294922,1726486023308,-489.41,0.000296,31]
[338294923,1726486023400,-489.41,0.000296,31]
[338294924,1726486023488,-489.41,0.000296,31]
[338294925,1726486023578,-489.41,0.000296,31]
[338294926,1726486023668,-489.41,0.000296,31]
[338294927,1726486023758,-489.41,0.000296,31]
[338294928,1726486023847,-489.41,0.000296,31]
[338294929,1726486023935,-489.41,0.000296,31]
[338294930,1726486024024,-489.41,0.000296,31]
[338294931,1726486024111,-489.41,0.000296,31]
[338294932,1726486024206,-489.41,0.000296,31]
[338294933,1726486024294,-489.41,0.000296,31]
[338294934,1726486024381,-489.41,0.000296,31]
[338294935,1726486024466,-489.41,0.000296,31]
[338294936,1726486024550,-489.41,0.000296,31]
[338294937,1726486024636,-489.41,0.000296,31]
[338294938,1726486024718,-489.41,0.000296,31]
[338294939,1726486024799,-489.41,0.000296,31]
[338294940,1726486024882,-489.41,0.000296,31]
[338294941,1726486025211,-489.41,0.000296,31]
[338294942,1726486025290,-500.0,0.0003,120]
[338294943,1726486025368,-2303.25261875,0.0003,60]
[338294944,1726486025446,-151.0,0.0003,120]
[338294945,1726486025525,-151.0,0.0003,120]
[338294946,1726486025601,-300.0,0.0003,120]
[338294947,1726486025682,-268.17552326,0.0003,120]
[338294948,1726486025765,-205.31512264,0.0003,30]
[338294949,1726486025843,-580.0,0.000302,120]
[338294950,1726486025920,-1500.0,0.00030522,42]
[338294951,1726486025998,-637863.9926,0.00030976,30]
[338294952,1726486026079,-1000.0,0.00031,120]
[338294953,1726486026158,-515.062897,0.00031,120]
[338294954,1726486026246,-489.41,0.000311,31]
[338294955,1726486026346,-489.41,0.000311,31]
[338294956,1726486026435,-489.41,0.000311,31]
[338294957,1726486026519,-489.41,0.000311,31]
[338294958,1726486026601,-489.41,0.000311,31]
[338294959,1726486026682,-489.41,0.000311,31]
[338294960,1726486026764,-489.41,0.000311,31]
[338294961,1726486026849,-489.41,0.000311,31]
[338294962,1726486026936,-489.41,0.000311,31]
[338294963,1726486027017,-489.41,0.000311,31]
[338294964,1726486027098,-489.41,0.000311,31]
[338294965,1726486027177,-489.41,0.000311,31]
[338294966,1726486027258,-489.41,0.000311,31]
[338294967,1726486027335,-489.41,0.000311,31]
[338294968,1726486027411,-489.41,0.000311,31]
[338294969,1726486027486,-489.41,0.000311,31]
[338294970,1726486027566,-489.41,0.000311,31]
[338294971,1726486027645,-489.41,0.000311,31]
[338294972,1726486027722,-489.41,0.000311,31]
[338294973,1726486027806,-489.41,0.000311,31]
[338294974,1726486027885,-489.41,0.000311,31]
[338294975,1726486027965,-489.41,0.000311,31]
[338294976,1726486028050,-489.41,0.000311,31]
[338294977,1726486028140,-489.41,0.000311,31]
[338294978,1726486028220,-580.0,0.000313,120]
[338294979,1726486028304,-1500.0,0.00031696,42]
[338294980,1726486028401,-1110.57279005,0.00031945,120]
[338294981,1726486028489,-200.0,0.00032,120]
[338294982,1726486028568,-151.0,0.00032,30]
[338294983,1726486028651,-151.0,0.00032137,120]
[338294984,1726486028731,-580.0,0.000324,120]
[338294985,1726486028814,-489.41,0.000326,31]
[338294986,1726486028895,-489.41,0.000326,31]
[338294987,1726486028974,-489.41,0.000326,31]
[338294988,1726486029054,-489.41,0.000326,31]
[338294989,1726486029138,-489.41,0.000326,31]
[338294990,1726486029220,-489.41,0.000326,31]
[338294991,1726486029300,-489.41,0.000326,31]
[338294992,1726486029385,-489.41,0.000326,31]
[338294993,1726486029471,-489.41,0.000326,31]
[338294994,1726486029558,-489.41,0.000326,31]
[338294995,1726486029639,-489.41,0.000326,31]
[338294996,1726486029721,-489.41,0.000326,31]
[338294997,1726486029798,-489.41,0.000326,31]
[338294998,1726486029876,-489.41,0.000326,31]
[338294999,1726486029955,-489.41,0.000326,31]
[338295000,1726486030033,-489.41,0.000326,31]
[338295001,1726486030113,-1500.0,0.0003287,42]
[338295002,1726486030192,-1000.0,0.00032876,120]
[338295003,1726486030274,-1678.7589,0.00032976,30]
[338295004,1726486030347,-1000.0,0.00033,120]
[338295005,1726486030420,-7729.67496875,0.00033,120]
[338295006,1726486030489,-3113.13,0.000331,30]
[338295007,1726486030559,-151.0,0.00033342,120]
[338295008,1726486030634,-580.0,0.000335,120]
[338295009,1726486030706,-5039.46016907,0.00033656,44]
[338295010,1726486030779,-1000.0,0.00033835,120]
[338295011,1726486030851,-300.0,0.00034,120]
[338295012,1726486030925,-64333.82818696,0.00034,30]
[338295013,1726486030997,-1500.0,0.00034043,42]
[338295014,1726486031072,-938.48016445,0.0003411,30]
[338295015,1726486031145,-166.50016107,0.0003411,30]
[338295016,1726486031218,-151.0,0.00034274,120]
[338295017,1726486031291,-938.48016445,0.00034274,30]
[338295018,1726486031374,-166.50016107,0.00034329,30]
[338295019,1726486031453,-938.48016445,0.00034438,30]
[338295020,1726486031535,-166.50016107,0.00034575,30]
[338295021,1726486031619,-580.0,0.000346,120]
[338295022,1726486031699,-3113.13,0.000346,30]
[338295023,1726486031779,-938.48016445,0.00034603,30]
[338295024,1726486031870,-938.48016445,0.00034767,30]
[338295025,1726486031950,-1000.0,0.00034794,120]
[338295026,1726486032025,-1000.0,0.00034794,118]
[338295027,1726486032101,-1000.0,0.00034794,118]
[338295028,1726486032178,-1000.0,0.00034794,118]
[338295029,1726486032253,-1000.0,0.00034794,118]
[338295030,1726486032326,-1000.0,0.00034794,118]
[338295031,1726486032398,-1000.0,0.00034794,118]
[338295032,1726486032472,-1000.0,0.00034794,118]
[338295033,1726486032547,-1000.0,0.00034794,118]
[338295034,1726486032625,-1000.0,0.00034794,118]
[338295035,1726486032701,-1000.0,0.00034794,118]
[338295036,1726486032775,-1000.0,0.00034794,118]
[338295037,1726486032848,-1000.0,0.00034794,118]
[338295038,1726486032922,-1000.0,0.00034794,118]
[338295039,1726486032996,-1000.0,0.00034794,118]
[338295040,1726486033071,-1000.0,0.00034794,118]
[338295041,1726486033145,-1000.0,0.00034794,118]
[338295042,1726486033221,-1000.0,0.00034794,118]
[338295043,1726486033296,-1000.0,0.00034794,118]
[338295044,1726486033566,-1033.98292177,0.00034794,118]
[338295045,1726486033643,-166.50016107,0.00034795,30]
[338295046,1726486033720,-938.48016445,0.00034932,30]
[338295047,1726486033795,-1397.0,0.00034948,60]
[338295048,1726486033873,-1000.0,0.00035,120]
[338295049,1726486033948,-336.14828755,0.00035,120]
[338295050,1726486034023,-560.46036957,0.00035,30]
[338295051,1726486034099,-200.0,0.00035,120]
[338295052,1726486034177,-155.29195798,0.00035014,30]
[338295053,1726486034250,-155.29195794,0.00035014,30]
[338295054,1726486034325,-155.29195794,0.00035014,30]
[338295055,1726486034400,-155.29195794,0.00035014,30]
[338295056,1726486034476,-166.50016107,0.00035014,30]
[338295057,1726486034557,-938.48016445,0.00035096,30]
[338295058,1726486034639,-1500.0,0.00035217,42]
[338295059,1726486034721,-166.50016107,0.00035233,30]
[338295060,1726486034795,-938.48016445,0.0003526,30]
[338295061,1726486034873,-938.48016445,0.00035425,30]
[338295062,1726486034950,-166.50016107,0.00035479,30]
[338295063,1726486035030,-938.48016445,0.00035589,30]
[338295064,1726486035105,-720.9,0.00035616,120]
[338295065,1726486035181,-720.9,0.00035616,120]
[338295066,1726486035257,-720.9,0.00035616,120]
[338295067,1726486035331,-720.9,0.00035616,120]
[338295068,1726486035403,-720.9,0.00035616,120]
[338295069,1726486035476,-720.9,0.00035616,120]
[338295070,1726486035550,-720.9,0.00035616,120]
[338295071,1726486035626,-720.9,0.00035616,120]
[338295072,1726486035702,-720.9,0.00035616,120]
[338295073,1726486035772,-720.9,0.00035616,120]
[338295074,1726486035844,-720.9,0.00035616,120]
[338295075,1726486035917,-720.9,0.00035616,120]
[338295076,1726486035990,-720.9,0.00035616,120]
[338295077,1726486036065,-720.9,0.00035616,120]
[338295078,1726486036139,-720.9,0.00035616,120]
[338295079,1726486036218,-720.9,0.00035616,120]
[338295080,1726486036299,-720.9,0.00035616,120]
[338295081,1726486036378,-720.9,0.00035616,120]
[338295082,1726486036458,-720.9,0.00035616,120]
[338295083,1726486036538,-720.9,0.00035616,120]
[338295084,1726486036614,-720.9,0.00035616,120]
[338295085,1726486036694,-720.9,0.00035616,120]
[338295086,1726486036773,-720.9,0.00035616,120]
[338295087,1726486036848,-721.13513172,0.00035616,120]
[338295088,1726486036927,-50000.0,0.00035616,30]
[338295089,1726486037005,-286.284768,0.00035616,120]
[338295090,1726486037082,-166.50016107,0.00035699,30]
[338295091,1726486037164,-580.0,0.000357,120]
[338295092,1726486037248,-1000.0,0.00035753,120]
[338295093,1726486037330,-938.48016445,0.00035753,30]
[338295094,1726486037415,-938.48016445,0.00035918,30]
[338295095,1726486037499,-500.0,0.00036,120]
[338295096,1726486037582,-324.78925203,0.00036,30]
[338295097,1726486037668,-6815.25,0.00036164,31]
[338295098,1726486037756,-1500.0,0.00036391,42]
[338295099,1726486037844,-151.0,0.00036411,120]
[338295100,1726486037928,-178.82389807,0.000365,120]
[338295101,1726486038007,-151.0,0.00036685,120]
[338295102,1726486038084,-1000.0,0.00036712,120]
[338295103,1726486038164,-580.0,0.000368,120]
[338295104,1726486038243,-1000.0,0.00037,120]
[338295105,1726486038334,-3000.0,0.00037,47]
[338295106,1726486038413,-6815.25,0.0003726,33]
[338295107,1726486038491,-50000.0,0.000375,30]
[338295108,1726486038574,-1500.0,0.00037565,42]
[338295109,1726486038655,-1000.0,0.00037671,120]
[338295110,1726486038735,-580.0,0.000379,120]
[338295111,1726486038809,-10000.0,0.00038,30]
[338295112,1726486038892,-500.0,0.00038,120]
[338295113,1726486038969,-3000.0,0.00038,111]
[338295114,1726486039046,-3306.84025366,0.00038,30]
[338295115,1726486039122,-32584.15076048,0.00038,120]
[338295116,1726486039202,-285.35100489,0.00038,120]
[338295117,1726486039279,-2566.89,0.0003828,48]
[338295118,1726486039361,-3339.22,0.00038356,60]
[338295119,1726486039442,-3339.22,0.00038356,60]
[338295120,1726486039524,-3339.22,0.00038356,60]
[338295121,1726486039605,-3339.22,0.00038356,60]
[338295122,1726486039684,-3339.22,0.00038356,60]
[338295123,1726486039767,-3339.22,0.00038356,60]
[338295124,1726486039844,-3339.22,0.00038356,60]
[338295125,1726486039920,-3339.22,0.00038356,60]
[338295126,1726486039994,-3339.22,0.00038356,60]
[338295127,1726486040067,-3339.22,0.00038356,60]
[338295128,1726486040148,-3339.22,0.00038356,60]
[338295129,1726486040226,-3339.22,0.00038356,60]
[338295130,1726486040303,-3339.22,0.00038356,60]
[338295131,1726486040381,-3339.22,0.00038356,60]
[338295132,1726486040455,-3339.22,0.00038356,60]
[338295133,1726486040530,-3339.22,0.00038356,60]
[338295134,1726486040607,-3339.22,0.00038356,60]
[338295135,1726486040684,-3339.22,0.00038356,60]
[338295136,1726486040760,-3339.22,0.00038356,60]
[338295137,1726486040832,-3339.22,0.00038356,60]
[338295138,1726486040906,-3339.22,0.00038356,60]
[338295139,1726486040977,-3339.22,0.00038356,60]
[338295140,1726486041053,-3339.22,0.00038356,60]
[338295141,1726486041128,-3339.3653368,0.00038356,60]
[338295142,1726486041202,-2814.41,0.00038356,120]
[338295143,1726486041276,-2814.41,0.00038356,120]
[338295144,1726486041351,-2814.41,0.00038356,120]
[338295145,1726486041425,-2814.41,0.00038356,120]
[338295146,1726486041499,-2814.41,0.00038356,120]
[338295147,1726486041749,-2814.41,0.00038356,120]
[338295148,1726486041828,-2814.41,0.00038356,120]
[338295149,1726486041905,-2814.41,0.00038356,120]
[338295150,1726486041981,-2814.41,0.00038356,120]
[338295151,1726486042056,-2814.41,0.00038356,120]
[338295152,1726486042132,-2814.41,0.00038356,120]
[338295153,1726486042212,-2814.41,0.00038356,120]
[338295154,1726486042289,-2814.41,0.00038356,120]
[338295155,1726486042364,-2814.41,0.00038356,120]
[338295156,1726486042446,-2814.41,0.00038356,120]
[338295157,1726486042526,-2814.41,0.00038356,120]
[338295158,1726486042597,-2814.41,0.00038356,120]
[338295159,1726486042671,-2814.41,0.00038356,120]
[338295160,1726486042746,-2814.41,0.00038356,120]
[338295161,1726486042822,-2814.41,0.00038356,120]
[338295162,1726486042896,-2814.41,0.00038356,120]
[338295163,1726486042969,-2814.41,0.00038356,120]
[338295164,1726486043044,-2814.41,0.00038356,120]
[338295165,1726486043120,-2814.43831303,0.00038356,120]
[338295166,1726486043195,-1153.33,0.00038356,30]
[338295167,1726486043271,-6815.25,0.00038356,120]
[338295168,1726486043346,-535.07571197,0.00038356,70]
[338295169,1726486043420,-50000.0,0.000385,30]
[338295170,1726486043493,-50000.0,0.000385,30]
[338295171,1726486043568,-151.0,0.00038548,120]
[338295172,1726486043645,-1000.0,0.0003863,120]
[338295173,1726486043722,-1153.33,0.0003863,30]
[338295174,1726486043803,-1500.0,0.00038739,42]
[338295175,1726486043880,-1153.33,0.00038904,30]
[338295176,1726486043955,-150.0,0.00039,30]
[338295177,1726486044031,-1000.0,0.00039,120]
[338295178,1726486044110,-3000.0,0.00039,117]
[338295179,1726486044188,-2000.0,0.00039,30]
[338295180,1726486044266,-580.0,0.00039,120]
[338295181,1726486044345,-1153.33,0.00039178,30]
[338295182,1726486044419,-1153.33,0.00039452,30]
[338295183,1726486044493,-6815.25,0.00039452,120]
[338295184,1726486044567,-50000.0,0.000395,30]
[338295185,1726486044643,-1000.0,0.00039589,120]
[338295186,1726486044718,-1153.33,0.00039726,30]
[338295187,1726486044796,-1000.0,0.000399,120]
[338295188,1726486044872,-1500.0,0.00039913,42]
[338295189,1726486044951,-500.0,0.0004,30]
[338295190,1726486045025,-40242.0,0.0004,30]
[338295191,1726486045102,-34560.58790208,0.0004,30]
[338295192,1726486045179,-200.0,0.0004,120]
[338295193,1726486045254,-77754.96326377,0.0004,120]
[338295194,1726486045341,-150.0,0.0004,30]
[338295195,1726486045421,-460.61673059,0.0004,120]
[338295196,1726486045498,-500.0,0.0004,120]
[338295197,1726486045578,-13780.0,0.0004,30]
[338295198,1726486045654,-3000.0,0.0004,30]
[338295199,1726486045732,-678.75688671,0.0004,120]
[338295200,1726486045809,-1120.50576416,0.0004,120]
[338295201,1726486045888,-556.0,0.0004,30]
[338295202,1726486045965,-1153.33,0.0004,30]
[338295203,1726486046041,-151.0,0.00040027,120]
[338295204,1726486046120,-580.0,0.000401,120]
[338295205,1726486046200,-1153.33,0.00040273,30]
[338295206,1726486046282,-1000.0,0.000405,30]
[338295207,1726486046359,-1000.0,0.000405,30]
[338295208,1726486046436,-602.0,0.000405,30]
[338295209,1726486046514,-1000.0,0.000405,30]
[338295210,1726486046595,-1000.0,0.000405,30]
[338295211,1726486046677,-1000.0,0.000405,30]
[338295212,1726486046756,-1000.0,0.000405,30]
[338295213,1726486046836,-867.0,0.000405,30]
[338295214,1726486046918,-1000.0,0.00040547,120]
[338295215,1726486046995,-1153.33,0.00040547,30]
[338295216,1726486047078,-6815.25,0.00040547,120]
[338295217,1726486047156,-151.0,0.00040685,120]
[338295218,1726486047235,-1153.33,0.00040821,30]
[338295219,1726486047316,-354248.35096925,0.00041,30]
[338295220,1726486051002,-150.0,0.00034616,14]
[338295221,1726486051318,-150.0,0.00034616,14]
[338295222,1726486051397,-200.0,0.00034616,14]
[338295223,1726486051473,-180.5181508,0.00034616,30]
[338295224,1726486051551,-3000.0,0.00034616,37]
[338295225,1726486051632,-199999.999999,0.00034616,60]
[338295226,1726486051716,-1000.0,0.00034616,120]
[338295227,1726486051799,-1000.0,0.00034616,120]
[338295228,1726486051881,-266.04108099,0.00034616,120]
[338295229,1726486051960,-256.55108374,0.00034616,120]
[338295230,1726486052039,-1358.59579086,0.00034616,30]
[338295231,1726486052118,-155.55038178,0.00034616,30]
[338295232,1726486052200,-671.14942527,0.00034616,120]
[338295233,1726486052279,-869.7295784,0.00034616,120]
[338295234,1726486052357,-480.02544147,0.00034616,30]
[338295235,1726486052455,-1301.92593386,0.00034616,60]
[338295236,1726486052544,-1041.84786056,0.00034616,120]
[338295237,1726486052627,-1738.63895135,0.00034616,30]
[338295238,1726486052709,-902.37927071,0.00034616,120]
[338295239,1726486052787,-1022.94810844,0.00034616,120]
[338295240,1726486052868,-3000.0,0.00034616,120]
[338295241,1726486052950,-3000.0,0.00034616,114]
[338295242,1726486053030,-3000.0,0.00034616,108]
[338295243,1726486053112,-3000.0,0.00034616,79]
[338295244,1726486053194,-40182.757728,0.00034616,30]
[338295245,1726486053278,-3000.0,0.00034616,50]
[338295246,1726486053360,-3000.0,0.00034616,44]
[338295247,1726486053438,-206.33187874,0.00034616,30]
[338295248,1726486053518,-1000.0,0.00034616,32]
[338295249,1726486053596,-790.02866872,0.00034616,35]
[338295250,1726486053680,-343.1,0.00034616,120]
[338295251,1726486053766,-862.30917838,0.00034616,35]
[338295252,1726486053850,-169.0071835,0.00034616,120]
[338295253,1726486053941,-1000.0,0.00034616,90]
[338295254,1726486054028,-313.094,0.00034616,120]
[338295255,1726486054113,-779.6459811,0.00034616,37]
[338295256,1726486054199,-5202.72822307,0.00034616,120]
[338295257,1726486054284,-14000.747303,0.00034616,120]
[338295258,1726486054364,-2480.58723376,0.00034616,120]
[338295259,1726486054446,-43182.71603535,0.00034616,120]
[338295260,1726486054527,-1000.71699784,0.00034616,120]